Cogmind - Beta 10.2 @@@ ROGUE MODE // 2020.11.05 @ 20:42:39 // Halloween2020/ForbiddenLore Player: Sherlockkat Result: Self-destructed Performance ------------- Evolutions (4) 2000 Regions Visited (13) 2600 Robots Destroyed (121) 605 Value Destroyed (3837) 3837 Prototype IDs (30) 600 Alien Tech Used (0) 0 Bonus (2377) 2377 TOTAL SCORE: 12019 Bonus ------- Pacifist 200 High Alert Combat Kills 484 Entered Garrisons 400 Used RIF Installer 1000 Aligned with FarCom 300 Friendly Fire -7 Cogmind --------- Core Integrity 715/850 Matter 66/300 Energy 35/125 System Corruption 4% Temperature Cool (381) Movement Treading (186) Ox1 Location -6/Factory Parts ------- > --- POWER (1) -------- Light Ion Engine > --- PROPULSION (3) --- Improved Treads Armored Treads Armored Treads > --- UTILITY (8) ------ Large Storage Unit High-capacity Storage Unit High-capacity Storage Unit Advanced Sensor Array Advanced Signal Interpreter Reactive Plating > --- WEAPON (3) ------- Advanced Beam Cannon Enhanced Autogun Enhanced Autogun > --- INVENTORY (26) --- Light Nuclear Core Light Angular Momentum Engine Armored Treads Improved Heat Sink Disposable Heat Sink Large Storage Unit Large Battery (300) Cloak of Protection Hacking Suite Relay Coupler [Grunt] (28) Relay Coupler [Grunt] (22) Advanced Beam Cannon Rocket Launcher Rocket Launcher Rocket Launcher Peak State ------------ > --- POWER ------------ Improved Deuterium Engine > --- PROPULSION ------- Armored Treads Armored Treads Armored Treads > --- UTILITY ---------- Disposable Heat Sink Large Storage Unit High-capacity Storage Unit High-capacity Storage Unit Advanced Sensor Array Advanced Signal Interpreter Hardened Light Armor Plating Hardened Light Armor Plating > --- WEAPON ----------- Heavy EM Shotgun Gauss Rifle Gauss Rifle > --- INVENTORY -------- Light Ion Engine Light Nuclear Core Light Angular Momentum Engine Improved Treads Armored Treads Armored Treads Improved Heat Sink Disposable Heat Sink Large Storage Unit Large Battery Cloak of Protection Reactive Plating Hacking Suite Relay Coupler [Grunt] Relay Coupler [Grunt] Advanced Beam Cannon Advanced Beam Cannon Enhanced Autogun Enhanced Autogun Enhanced Autogun Rocket Launcher Rocket Launcher Rocket Launcher Rocket Launcher [Rating: 47] Favorites ----------- Power Light Nuclear Core Engine Heavy Ion Engine Power Core Light Nuclear Core Propulsion Light Treads Treads Light Treads Utility Large Storage Unit Device Disposable Heat Sink Storage Large Storage Unit Processor Salvage Targeting Computer Hackware Hacking Suite Protection Hardened Light Armor Plating Weapon Gauss Rifle Energy Gun Heavy EM Shotgun Energy Cannon EM Pulse Cannon Ballistic Gun Gauss Rifle Launcher Rocket Launcher Build | -11 -10 -10 -9 -9 -9 -8 -8 -8 -8 -8 -8 -8 -6 ------- Run | Scr Mat Min Mat Min Exi Min Mat Gar Mat Sto Gar Rec Fac Slots Evolved 8 | . . . 2 . . . 2 . . . . . 4 Power . | . . . . . . . . . . . . . . Propulsion 1 | . . . . . . . . . . . . . 1 Utility 6 | . . . 1 . . . 2 . . . . . 3 Weapon 1 | . . . 1 . . . . . . . . . . Parts Attached 91 | 6 2 1 3 . . 4 9 7 6 25 7 . 21 Power 7 | 1 . . 1 . . . . 1 . 2 . . 2 Engine 4 | 1 . . 1 . . . . . . . . . 2 Core 3 | . . . . . . . . 1 . 2 . . . Reactor . | . . . . . . . . . . . . . . Propulsion 20 | 2 . . . . . . 2 1 1 6 2 . 6 Treads 20 | 2 . . . . . . 2 1 1 6 2 . 6 Leg . | . . . . . . . . . . . . . . Wheel . | . . . . . . . . . . . . . . Hover . | . . . . . . . . . . . . . . Flight . | . . . . . . . . . . . . . . Utility 23 | 1 2 . 1 . . . 6 . 3 4 1 . 5 Device 5 | . . . . . . . 1 . . 1 1 . 2 Storage 9 | 1 2 . . . . . 4 . 2 . . . . Processor 2 | . . . 1 . . . . . . . . . 1 Hackware 1 | . . . . . . . . . . 1 . . . Protection 6 | . . . . . . . 1 . 1 2 . . 2 Artifact . | . . . . . . . . . . . . . . Weapon 41 | 2 . 1 1 . . 4 1 5 2 13 4 . 8 Energy Gun 8 | 1 . 1 . . . 1 1 . . 4 . . . Energy Cannon 13 | . . . 1 . . 1 . 2 1 4 1 . 3 Ballistic Gun 12 | 1 . . . . . . . 2 1 3 2 . 3 Ballistic Cannon . | . . . . . . . . . . . . . . Launcher 8 | . . . . . . 2 . 1 . 2 1 . 2 Special Weapon . | . . . . . . . . . . . . . . Impact Weapon . | . . . . . . . . . . . . . . Slashing Weapon . | . . . . . . . . . . . . . . Piercing Weapon . | . . . . . . . . . . . . . . Special Melee Weapon . | . . . . . . . . . . . . . . Unidentified Prototypes 7 | . . . 1 . . . 1 . . 5 . . . Parts Lost 12 | . . . . . . . . 3 1 2 . . 6 Power 3 | . . . . . . . . 1 . 1 . . 1 Propulsion 1 | . . . . . . . . 1 . . . . . Utility 3 | . . . . . . . . . 1 . . . 2 Weapon 5 | . . . . . . . . 1 . 1 . . 3 Highest Loss Streak 3 | . . . . . . . . 2 1 2 . . 3 Average Slot Usage (%) 98 | . 97 100 93 100 100 100 99 90 99 99 100 100 98 Engine 4 | . 14 14 11 11 11 11 9 5 . . . . 4 Core 4 | . . . . . . . . 3 9 8 9 9 1 Treads 19 | . 28 28 22 22 22 22 18 18 18 17 18 18 20 Device 6 | . . . . . . . 7 9 9 5 7 9 12 Storage 25 | . 26 28 22 22 22 22 26 27 27 27 27 27 20 Processor 2 | . . . 9 11 11 11 1 . . . . . 5 Protection 7 | . . . . . . . 8 9 9 8 9 9 12 Energy Gun 6 | . 14 14 11 11 11 10 9 3 . 2 9 9 3 Energy Cannon 6 | . . . 6 11 11 10 9 3 17 9 . . 2 Ballistic Gun 12 | . 14 14 11 11 11 11 9 11 9 14 17 18 13 Naked Turns . | . . . . . . . . . . . . . . Heaviest Build 118 | 11 39 39 48 48 48 50 88 92 107 107 103 103 118 Greatest Support 63 | 40 40 40 40 40 40 40 40 40 40 42 42 40 63 Greatest Overweight (x) 5 | . . . 1 1 1 1 2 2 2 5 2 2 1 Average Overweight (x) 1 | . . . . 1 1 1 1 1 2 2 2 2 1 Largest Inventory Capacity 26 | 6 16 16 16 16 16 16 24 24 26 26 26 26 26 Average Capacity 22 | 4 14 16 16 16 16 16 22 24 25 26 26 26 26 Most Carried 26 | 2 16 16 16 16 16 16 24 23 22 26 26 26 26 Average Carried 20 | 1 9 15 15 16 15 16 18 20 21 23 25 25 22 Final Capacity 26 | 6 16 16 16 16 16 16 24 24 26 26 26 26 26 Final Carried 26 | 2 16 16 16 16 16 16 22 22 22 26 26 26 15 Class Distribution -------------------- 53% | Hauler-Skirmisher 11% | Hauler-Mutant 11% | Hauler-Tank 10% | Gunner 7% | Mutant 4% | Skirmisher Dominant Class ---------------- Mutant | -10/Materials Mutant | -10/Mines Gunner | -9/Materials Gunner | -9/Mines Gunner | -9/Exiles Skirmisher | -8/Mines Hauler-Skirmisher | -8/Materials Hauler-Skirmisher | -8/Garrison Hauler-Skirmisher | -8/Materials Hauler-Skirmisher | -8/Storage Hauler-Skirmisher | -8/Garrison Hauler-Skirmisher | -8/Recycling Hauler-Tank | -6/Factory Resources | -11 -10 -10 -9 -9 -9 -8 -8 -8 -8 -8 -8 -8 -6 ----------- Run | Scr Mat Min Mat Min Exi Min Mat Gar Mat Sto Gar Rec Fac Matter Collected 1935 | 201 . . 46 . . 149 160 101 119 420 241 112 386 Remotely . | . . . . . . . . . . . . . . Salvage Created 4459 | . . . 46 . . 206 476 719 467 663 337 561 984 Parts 270 | . . . 4 . . 23 29 38 23 48 24 16 65 Haulers Intercepted 2 | . . . . . . . 1 . . 1 . . . Recyclers Shooed 6 | . . . . . . . 1 . . . . 2 3 Parts Field Recycled . | . . . . . . . . . . . . . . Retrieved Matter . | . . . . . . . . . . . . . . Parts Self-Destructed . | . . . . . . . . . . . . . . Prevented . | . . . . . . . . . . . . . . Kills | -11 -10 -10 -9 -9 -9 -8 -8 -8 -8 -8 -8 -8 -6 ------- Run | Scr Mat Min Mat Min Exi Min Mat Gar Mat Sto Gar Rec Fac Combat Hostiles Destroyed 90 | . . . 3 . . 8 10 17 7 14 9 7 15 Melee 1 | . . . . . . . . . . . . . 1 Guns 55 | . . . 2 . . 2 5 14 1 9 6 7 9 Cannons 17 | . . . 1 . . 1 3 1 5 2 . . 4 AOE 16 | . . . . . . 5 2 2 . 3 3 . 1 Classes Destroyed 16 | . . . 1 . . 4 3 1 2 2 . 1 2 Worker 5 | . . . . . . . . . . 2 . . 3 Builder 9 | . . . . . . 1 1 . . 1 . . 6 Tunneler 1 | . . . . . . 1 . . . . . . . Hauler 2 | . . . . . . . 1 . . 1 . . . Recycler 9 | . . . . . . . . . . 1 . 6 2 Mechanic 1 | . . . . . . . . . 1 . . . . Operator 1 | . . . . . . . . . 1 . . . . Drone 7 | . . . . . . . . . . . . 7 . Watcher 3 | . . . . . . . 1 . 1 . . . 1 Swarmer 29 | . . . 3 . . 4 2 4 . 6 3 . 7 Saboteur 1 | . . . . . . . . . . . . . 1 Grunt 29 | . . . . . . 3 4 10 2 3 2 . 5 Brawler 1 | . . . . . . . . 1 . . . . . Sentry 16 | . . . . . . . 4 1 3 5 3 . . Hunter 5 | . . . . . . 1 . 1 2 . 1 . . Programmer 2 | . . . . . . . . . . . . . 2 Best Kill Streak 11 | . . . 3 . . 3 4 5 3 8 5 8 11 Combat Bots Only 8 | . . . 3 . . 3 3 5 2 4 5 2 8 Max Kills in Single Turn 3 | . . . 2 . . 2 2 2 1 3 2 2 3 Gunslinging 1 | . . . . . . . . . . . . . 1 Exploded 2 | . . . . . . 2 2 2 . 2 2 . 1 Melee 1 | . . . . . . . . . . . . . 1 Uniques/NPCs Destroyed . | . . . . . . . . . . . . . . Combat | -11 -10 -10 -9 -9 -9 -8 -8 -8 -8 -8 -8 -8 -6 -------- Run | Scr Mat Min Mat Min Exi Min Mat Gar Mat Sto Gar Rec Fac Damage Taken 3740 | . . 20 20 . . 204 715 395 288 337 214 . 1547 Core 424 | . . . . . . 41 130 51 26 26 15 . 135 Absorbed by Shields . | . . . . . . . . . . . . . . Core Remaining (%) 85 | 100 . 100 . . . 89 . . . . . 54 . Volleys Fired 195 | . 2 . 5 . . 15 25 9 22 26 23 19 49 Largest 3 | . 2 . 3 . . 3 3 3 3 3 3 3 3 Hottest 154 | . 60 . 123 . . 148 148 154 154 154 146 106 121 Shots Fired 523 | . 4 . 13 . . 30 75 53 52 59 52 55 130 Gun 381 | . 4 . 10 . . 15 50 48 16 45 48 55 90 Cannon 123 | . . . 3 . . 9 25 4 36 11 3 . 32 Launcher 19 | . . . . . . 6 . 1 . 3 1 . 8 Special . | . . . . . . . . . . . . . . Kinetic 303 | . 2 . 5 . . 9 25 47 16 41 35 38 85 Thermal 74 | . 2 . 5 . . 6 25 1 . . 3 . 32 Explosive 19 | . . . . . . 6 . 1 . 3 1 . 8 Electromagnetic 127 | . . . 3 . . 9 25 4 36 15 13 17 5 Robot Hit Streak 34 | . 1 . 3 . . 6 30 33 34 10 7 9 13 Robot Miss Streak 11 | . 1 . 1 . . 3 3 2 5 3 6 11 4 Penetration Max 1 | . . . . . . . . 1 . 1 . 1 1 Secondary Targets 2 | . . . . . . . . . . . . . 2 Max Gunslinging Chain 1 | . . . . . . . . . . . . . 1 Autonomous 41 | . . . . . . . . 41 . . . . . Shots Hit Robots 313 | . 2 . 7 . . 17 56 46 31 27 28 25 74 Core Hits 209 | . . . 3 . . 21 37 23 15 24 13 17 56 Critical Hits 11 | . . . . . . . 1 . 1 1 1 1 6 Critical Kills 4 | . . . . . . . . . 1 1 . 1 1 Critical Parts Destroyed 6 | . . . . . . . 1 . . . . . 5 Melee Attacks . | . . . . . . . . . . . . . . Impact . | . . . . . . . . . . . . . . Slashing . | . . . . . . . . . . . . . . Piercing . | . . . . . . . . . . . . . . Sneak Attacks . | . . . . . . . . . . . . . . Combat Hostiles . | . . . . . . . . . . . . . . Follow-up Attacks . | . . . . . . . . . . . . . . Damage Inflicted 9253 | . 7 . 85 . . 674 1464 1426 755 1067 478 821 2476 Guns 5101 | . 7 . 65 . . 87 531 1200 220 503 314 821 1353 Cannons 1660 | . . . 20 . . 53 339 104 524 130 . . 490 Explosions 2481 | . . . . . . 534 594 122 . 434 164 . 633 Melee . | . . . . . . . . . . . . . . Ramming 11 | . . . . . . . . . 11 . . . . Kinetic 3865 | . 7 . 23 . . 33 105 1200 220 431 129 448 1269 Thermal 1537 | . . . 42 . . 54 818 . . 37 96 . 490 Explosive 1956 | . . . . . . 534 202 122 . 397 68 . 633 Electromagnetic 1884 | . . . 20 . . 53 339 104 524 202 185 373 84 Impact . | . . . . . . . . . . . . . . Slashing . | . . . . . . . . . . . . . . Piercing . | . . . . . . . . . . . . . . Highest Corruption 4 | . . 1 . . . . . . . . . . 4 Average Corruption 3 | . . 1 . . . . . . . . . . 3 Corruption Purged . | . . . . . . . . . . . . . . Effects 6 | . . . . . . . . . . . . . 6 Message Errors 2 | . . . . . . . . . . . . . 2 Matter Fused 1 | . . . . . . . . . . . . . 1 Heat Flow Errors 1 | . . . . . . . . . . . . . 1 Targeting Errors 2 | . . . . . . . . . . . . . 2 Overload Shots . | . . . . . . . . . . . . . . Overflow Damage 256 | . . . . . . 31 175 . 21 8 . . 21 Projectiles 47 | . . . . . . . 2 . 21 5 . . 19 Explosions 209 | . . . . . . 31 173 . . 3 . . 2 Melee . | . . . . . . . . . . . . . . Knockbacks . | . . . . . . . . . . . . . . Impact . | . . . . . . . . . . . . . . Kinetic . | . . . . . . . . . . . . . . Secondary . | . . . . . . . . . . . . . . Self-Inflicted Damage 328 | . . . . . . 17 135 . . 80 55 . 41 Shots 7 | . . . . . . 2 2 . . 1 1 . 1 Rammed 2 | . . . . . . . 1 . 1 . . . . Targets Rammed 2 | . . . . . . . 1 . 1 . . . . Kicked . | . . . . . . . . . . . . . . Crushed . | . . . . . . . . . . . . . . Highest Temperature 538 | . 20 . 171 . . 302 538 117 178 147 174 198 395 Average Temperature 89 | . 12 . 75 . . 100 152 56 68 50 47 77 99 Received Heat Transfer 906 | . . . 9 . . 36 207 153 18 90 27 . 366 Effects 8 | . . . . . . 2 2 . . . . . 4 Shutdowns 2 | . . . . . . . 1 . . . . . 1 Energy Bleed 1 | . . . . . . . 1 . . . . . . Interference 5 | . . . . . . 2 . . . . . . 3 Siege Activations . | . . . . . . . . . . . . . . Robots Corrupted 1 | . . . . . . . . . 1 . . . . Combat Hostiles 1 | . . . . . . . . . 1 . . . . Parts Fried 8 | . . . . . . 1 . . 3 . . 3 1 Impact Corruptions . | . . . . . . . . . . . . . . Robots Melted . | . . . . . . . . . . . . . . Combat Hostiles . | . . . . . . . . . . . . . . Parts Melted 1 | . . . . . . . 1 . . . . . . Heat Transferred 2032 | . . . 100 . . 75 893 . . 50 100 . 814 Parts Sabotaged 4 | . . . . . . . . . . . . . 4 Parts Stolen . | . . . . . . . . . . . . . . Parts Stripped . | . . . . . . . . . . . . . . Power Chain Reactions 4 | . . . . . . . . . . 1 2 1 . Missiles Intercepted . | . . . . . . . . . . . . . . Alert | -11 -10 -10 -9 -9 -9 -8 -8 -8 -8 -8 -8 -8 -6 ------- Run | Scr Mat Min Mat Min Exi Min Mat Gar Mat Sto Gar Rec Fac Peak Influence 1158 | . 30 11 88 34 . 320 322 665 501 409 457 358 1158 Initial 998 | . . 11 3 34 . . 124 211 323 211 197 205 998 Average 333 | . 11 11 36 34 . 167 134 450 345 235 354 248 978 Maximum Alert Level 4 | . . . . . . 1 1 2 2 2 2 1 4 Low Security (%) 37 | 100 100 100 100 100 . 84 89 . . 36 17 6 . Level 1 36 | . . . . . . 15 10 43 78 60 36 93 . Level 2 12 | . . . . . . . . 56 21 3 46 . . Level 3 13 | . . . . . . . . . . . . . 98 Level 4 . | . . . . . . . . . . . . . 1 Level 5 . | . . . . . . . . . . . . . . High Security . | . . . . . . . . . . . . . . Max Security . | . . . . . . . . . . . . . . Squads Dispatched 15 | . . . 1 . . . 6 . 1 2 . . 5 Investigation 3 | . . . . . . . 2 . . 1 . . . Extermination 1 | . . . . . . . . . . . . . 1 Reinforcement 4 | . . . 1 . . . . . 1 . . . 2 Assault 1 | . . . . . . . . . . . . . 1 Garrison 6 | . . . . . . . 4 . . 1 . . 1 Intercept . | . . . . . . . . . . . . . . Construction Impeded 1 | . . . . . . . . . . . . . 1 Haulers Reinforced . | . . . . . . . . . . . . . . Stealth | -11 -10 -10 -9 -9 -9 -8 -8 -8 -8 -8 -8 -8 -6 --------- Run | Scr Mat Min Mat Min Exi Min Mat Gar Mat Sto Gar Rec Fac Distress Signals 9 | . . . 1 . . . 4 . 1 2 . . 1 Communications Jammed . | . . . . . . . . . . . . . . Distress Signals . | . . . . . . . . . . . . . . Times Spotted 157 | . 2 . 6 . . 10 24 15 21 17 10 24 28 Peak Tracking Total 6 | . 2 . 3 . . 4 6 5 4 4 6 5 6 Tactical Retreats 11 | . . . . . . 2 2 1 3 . . . 3 Traps | -11 -10 -10 -9 -9 -9 -8 -8 -8 -8 -8 -8 -8 -6 ------- Run | Scr Mat Min Mat Min Exi Min Mat Gar Mat Sto Gar Rec Fac Traps Triggered 11 | . . 2 . . . . 2 1 1 2 3 . . Indirectly . | . . . . . . . . . . . . . . Trap Hack Attempts . | . . . . . . . . . . . . . . Triggered . | . . . . . . . . . . . . . . Disarmed . | . . . . . . . . . . . . . . Reprogrammed . | . . . . . . . . . . . . . . Reused . | . . . . . . . . . . . . . . Traps Extracted . | . . . . . . . . . . . . . . Installed . | . . . . . . . . . . . . . . Triggered . | . . . . . . . . . . . . . . Exploded 1 | . . . . . 1 . . . . . . . . Machines | -11 -10 -10 -9 -9 -9 -8 -8 -8 -8 -8 -8 -8 -6 ---------- Run | Scr Mat Min Mat Min Exi Min Mat Gar Mat Sto Gar Rec Fac Machines Disabled 25 | . . . . . . 1 9 2 3 5 1 3 1 Max in Single Turn 5 | . . . . . . 1 5 1 1 1 1 2 1 Garrison Relay 2 | . . . . . . . . 1 . . 1 . . Machines Sabotaged . | . . . . . . . . . . . . . . Garrisons Compromised . | . . . . . . . . . . . . . . Overloaded Fab Kills . | . . . . . . . . . . . . . . Fab Network Shutdowns . | . . . . . . . . . . . . . . Hacking | -11 -10 -10 -9 -9 -9 -8 -8 -8 -8 -8 -8 -8 -6 --------- Run | Scr Mat Min Mat Min Exi Min Mat Gar Mat Sto Gar Rec Fac Machines Accessed 21 | . 1 1 1 . 1 . 6 . 1 6 . 3 1 Terminals 14 | . 1 . 1 . . . 4 . . 5 . 2 1 Fabricators . | . . . . . . . . . . . . . . Repair Stations 1 | . . . . . . . . . 1 . . . . Recycling Units 1 | . . . . . . . . . . . . 1 . Scanalyzers 1 | . . . . . . . 1 . . . . . . Garrison Access 2 | . . . . . . . 1 . . 1 . . . Total Hacks 45 | . 1 1 4 . 1 . 13 . 1 13 . 7 4 Successful 20 | . 1 1 1 . 1 . 5 . 1 6 . 3 1 Failed 25 | . . . 3 . . . 8 . . 7 . 4 3 Catastrophic 4 | . . . . . . . 2 . . 1 . . 1 Database Lockouts . | . . . . . . . . . . . . . . Manual 26 | . . . 4 . 1 . . . 1 9 . 7 4 Terminals 37 | . 1 . 4 . . . 10 . . 12 . 6 4 Fabricators . | . . . . . . . . . . . . . . Repair Stations 1 | . . . . . . . . . 1 . . . . Recycling Units 1 | . . . . . . . . . . . . 1 . Scanalyzers 2 | . . . . . . . 2 . . . . . . Garrison Access 2 | . . . . . . . 1 . . 1 . . . Terminal Hacks 14 | . 1 1 1 . 1 . 2 . . 5 . 2 1 Open Door 3 | . . 1 . . . . . . . 2 . . . Branch Access Points 1 | . . . . . . . 1 . . . . . . Terminal Index 1 | . 1 . . . . . . . . . . . . Unreport Threat 1 | . . . . . . . . . . 1 . . . Hauler Manifests 1 | . . . . . . . 1 . . . . . . Zone Layout 6 | . . . 1 . . . . . . 2 . 2 1 EX-Prototype ID Bank 1 | . . . . . 1 . . . . . . . . Fabricator Hacks . | . . . . . . . . . . . . . . Repair Station Hacks . | . . . . . . . . . . . . . . Recycling Unit Hacks . | . . . . . . . . . . . . . . Scanalyzer 2 | . . . . . . . 2 . . . . . . Insert Component 1 | . . . . . . . 1 . . . . . . Analyze 1 | . . . . . . . 1 . . . . . . Garrison Access Hacks 2 | . . . . . . . 1 . . 1 . . . Unlock Access 2 | . . . . . . . 1 . . 1 . . . Unauthorized Hacks 2 | . . . . . . . . . 1 . . 1 . Terminals . | . . . . . . . . . . . . . . Fabricators . | . . . . . . . . . . . . . . Repair Stations 1 | . . . . . . . . . 1 . . . . Mechanics 1 | . . . . . . . . . 1 . . . . Recycling Units 1 | . . . . . . . . . . . . 1 . Tunnel 1 | . . . . . . . . . . . . 1 . Scanalyzers . | . . . . . . . . . . . . . . Garrison Access . | . . . . . . . . . . . . . . Data Cores Recovered . | . . . . . . . . . . . . . . Used . | . . . . . . . . . . . . . . Hacking Detections 12 | . 1 . 1 . . . 4 . . 4 . 2 . Full Trace Events 2 | . . . . . . . . . . 1 . 1 . Feedback Events . | . . . . . . . . . . . . . . Feedback Blocked . | . . . . . . . . . . . . . . Robot Schematics Acquired . | . . . . . . . . . . . . . . Robots Built . | . . . . . . . . . . . . . . Matter . | . . . . . . . . . . . . . . Time . | . . . . . . . . . . . . . . Total Robot Build Rating . | . . . . . . . . . . . . . . Part Schematics Acquired 1 | . . . . . . . 1 . . . . . . Parts Built . | . . . . . . . . . . . . . . Matter . | . . . . . . . . . . . . . . Time . | . . . . . . . . . . . . . . Total Part Build Rating . | . . . . . . . . . . . . . . Parts Repaired . | . . . . . . . . . . . . . . Time . | . . . . . . . . . . . . . . Parts Recycled . | . . . . . . . . . . . . . . Recycled Matter . | . . . . . . . . . . . . . . Retrieved Matter . | . . . . . . . . . . . . . . Retrieved Components . | . . . . . . . . . . . . . . Parts Scanalyzed 1 | . . . . . . . 1 . . . . . . Part Schematics Acquired 1 | . . . . . . . 1 . . . . . . Parts Damaged . | . . . . . . . . . . . . . . Bothacking | -11 -10 -10 -9 -9 -9 -8 -8 -8 -8 -8 -8 -8 -6 ------------ Run | Scr Mat Min Mat Min Exi Min Mat Gar Mat Sto Gar Rec Fac Used RIF Installer 2 | . . . . . . . . 1 . . 1 . . Threat Obfuscator 1 | . . . . . . . . . . . 1 . . Robots Hacked . | . . . . . . . . . . . . . . Non-combat . | . . . . . . . . . . . . . . Combat . | . . . . . . . . . . . . . . Robot Hacks Applied . | . . . . . . . . . . . . . . Relay Couplers Released 8 | . . . . . . . . 5 . . 3 . . Machine Destruction 8 | . . . . . . . . 5 . . 3 . . Robots Rewired . | . . . . . . . . . . . . . . Allies Hacked . | . . . . . . . . . . . . . . Hacks Repelled . | . . . . . . . . . . . . . . Allies | -11 -10 -10 -9 -9 -9 -8 -8 -8 -8 -8 -8 -8 -6 -------- Run | Scr Mat Min Mat Min Exi Min Mat Gar Mat Sto Gar Rec Fac Total Allies . | . . . . . . . . . . . . . . Largest Group . | . . . . . . . . . . . . . . Highest-Rated Group . | . . . . . . . . . . . . . . Highest-Rated Ally . | . . . . . . . . . . . . . . Total Orders . | . . . . . . . . . . . . . . Ally Attacks . | . . . . . . . . . . . . . . Total Damage . | . . . . . . . . . . . . . . Kills . | . . . . . . . . . . . . . . Allies Corrupted . | . . . . . . . . . . . . . . Allies Melted . | . . . . . . . . . . . . . . Intel | -11 -10 -10 -9 -9 -9 -8 -8 -8 -8 -8 -8 -8 -6 ------- Run | Scr Mat Min Mat Min Exi Min Mat Gar Mat Sto Gar Rec Fac Robot Analysis Total . | . . . . . . . . . . . . . . Derelict Logs Recovered . | . . . . . . . . . . . . . . Drone Launches . | . . . . . . . . . . . . . . Drone Recoveries . | . . . . . . . . . . . . . . Exploration | -11 -10 -10 -9 -9 -9 -8 -8 -8 -8 -8 -8 -8 -6 ------------- Run | Scr Mat Min Mat Min Exi Min Mat Gar Mat Sto Gar Rec Fac Turns Passed 6741 | 85 222 98 240 80 488 320 968 449 723 935 768 541 824 Spaces Moved 2886 | 49 126 57 125 45 260 149 322 201 300 389 326 240 297 Core 3 | 3 . . . . . . . . . . . . . Treads 2883 | 46 126 57 125 45 260 149 322 201 300 389 326 240 297 Legs . | . . . . . . . . . . . . . . Wheels . | . . . . . . . . . . . . . . Hover . | . . . . . . . . . . . . . . Flight . | . . . . . . . . . . . . . . Fastest Speed 50 | 50 160 160 160 180 180 180 180 180 200 192 192 200 180 Average Speed 189 | 153 160 160 171 180 180 180 190 199 200 194 197 200 189 Slowest Speed 260 | 160 160 160 180 180 180 180 200 200 200 260 200 200 190 Overloaded Moves . | . . . . . . . . . . . . . . Propulsion Burnouts . | . . . . . . . . . . . . . . Robots Hopped . | . . . . . . . . . . . . . . Cave-ins Triggered . | . . . . . . . . . . . . . . Exploration Rate (%) 32 | 3 28 19 17 10 62 49 27 38 30 50 49 61 12 Regions Visited 13 Branch Regions 6 Pre-discovered Areas 1 | . . . . . . . . . . . . 1 . Known Exits Taken 3 | . . . . . . . 1 . 1 1 . . . Unknown Exits Taken 8 | 1 1 1 1 1 1 1 . . . . . 1 . Scrap Searched . | . . . . . . . . . . . . . . Spaces Dug . | . . . . . . . . . . . . . . Terrain Destroyed 213 | . . . . . . 60 66 4 . 43 7 7 26 Melee . | . . . . . . . . . . . . . . Projectile 9 | . . . . . . . . 1 . 2 1 4 1 AOE 204 | . . . . . . 60 66 3 . 41 6 3 25 Terrain Rammed . | . . . . . . . . . . . . . . Walls Destroyed . | . . . . . . . . . . . . . . Machines Disabled . | . . . . . . . . . . . . . . Actions | -11 -10 -10 -9 -9 -9 -8 -8 -8 -8 -8 -8 -8 -6 --------- Run | Scr Mat Min Mat Min Exi Min Mat Gar Mat Sto Gar Rec Fac Total 3802 | 56 142 64 143 44 282 175 623 240 378 516 406 260 473 Wait 532 | . . 5 1 . 18 8 255 9 47 50 43 . 96 Move 2875 | 48 125 56 124 44 259 148 322 200 299 389 325 239 297 Hop . | . . . . . . . . . . . . . . Pick Up 49 | 2 13 1 5 . 2 . 6 5 1 9 . 1 4 Fast Attach 28 | 6 1 1 1 . . . 3 1 . 13 1 . 1 Attach 25 | . . . 2 . . . 1 5 2 2 . . 13 Detach 12 | . . . 1 . . . 2 4 . 3 1 . 1 Swap 38 | . 1 . . . . 4 5 1 4 10 6 . 7 Drop 38 | . . 1 4 . 3 . 3 4 2 14 1 1 5 Fire 195 | . 2 . 5 . . 15 25 9 22 26 23 19 49 Melee . | . . . . . . . . . . . . . . Ram . | . . . . . . . . . . . . . . Kick . | . . . . . . . . . . . . . . Crush 2 | . . . . . . . 1 . 1 . . . . Escape Stasis 8 | . . . . . . . . 2 . . 6 . . Rewire . | . . . . . . . . . . . . . . Trap . | . . . . . . . . . . . . . . Miscellaneous . | . . . . . . . . . . . . . . Route ------- -11/Scrapyard -10/Materials -10/Mines -9/Materials -9/Mines (discovered 3 exits: *Mat / *Exi / [*Zio]) -9/Exiles -8/Mines -8/Materials (discovered 3 exits: [*Fac] / Sto / Gar) -8/Garrison -8/Materials -8/Storage -8/Garrison (discovered 2 exits: *Rec x2) -8/Recycling -6/Factory History --------- Turn | Location | Event 17 | -11/Scrapyard | Discovered new exit (range 13) 86 | -11/Scrapyard | Entered Materials 267 | -10/Materials | Discovered new exit (range 16) 307 | -10/Materials | Build established: Mutant 308 | -10/Materials | Entered Mines 372 | -10/Mines | Discovered new exit (range 5) 381 | -10/Mines | Met a Derelict who couldn't figure out how to use a Trap Extractor 406 | -10/Mines | Entered Materials 406 | -9/Materials | Evolved 2 slots: Utility x1, Weapon x1 613 | -9/Materials | Discovered new exit (range 16) 646 | -9/Materials | Entered Mines 670 | -9/Mines | Discovered new exit (range 3) 671 | -9/Mines | A Derelict revealed a hidden shortcut to a safe place 682 | -9/Mines | Met a Derelict bent on vengeance 717 | -9/Mines | Deemed a non-threat by the Exiles lab entrance 718 | -9/Mines | Discovered new exit (range 5) 726 | -9/Mines | Entered Exiles 770 | -9/Exiles | Met 8R-AWN 800 | -9/Exiles | Met EX-HEX 812 | -9/Exiles | Build established: Gunner 854 | -9/Exiles | Met EX-BIN 876 | -9/Exiles | Aligned with FarCom system 878 | -9/Exiles | Given EX-Vault access code 926 | -9/Exiles | Opened EX-Vault 939 | -9/Exiles | Found Cloak of Protection 945 | -9/Exiles | Found AWS/Gauss 986 | -9/Exiles | Warned to stay clear of 0b10 Research branches 1003 | -9/Exiles | Exiles lab attacked by MAIN.C 1175 | -9/Exiles | Discovered new exit (range 10) 1214 | -9/Exiles | Stole two prototypes: Cloak of Protection, AWS/Gauss 1214 | -9/Exiles | Entered Mines 1491 | -8/Mines | Discovered new exit (range 15) 1514 | -8/Mines | Build established: Skirmisher 1534 | -8/Mines | Entered Materials 1534 | -8/Materials | Evolved 2 slots: Utility x2 1806 | -8/Materials | Identified exit to Storage 1835 | -8/Materials | Build established: Hauler-Skirmisher 2135 | -8/Materials | Garrison activated, responded to threat 2223 | -8/Materials | Discovered new exit (range 11) 2265 | -8/Materials | Garrison activated, responded to threat 2502 | -8/Materials | Identified exit to Garrison 2502 | -8/Materials | Entered Garrison 2513 | -8/Garrison | Installed Relay Interface Framework 2540 | -8/Garrison | Triggered checkpoint 2740 | -8/Garrison | Triggered checkpoint 2756 | -8/Garrison | Triggered checkpoint 2774 | -8/Garrison | Triggered checkpoint 2839 | -8/Garrison | Discovered new exit (range 8) 2856 | -8/Garrison | Triggered checkpoint 2883 | -8/Garrison | Garrison Relay disabled 2951 | -8/Garrison | Entered Materials 3641 | -8/Materials | Discovered exit to Storage (range 16) 3674 | -8/Materials | Entered Storage 4440 | -8/Storage | Garrison activated, responded to threat 4609 | -8/Storage | Identified exit to Garrison 4609 | -8/Storage | Entered Garrison 4811 | -8/Garrison | Triggered checkpoint 4864 | -8/Garrison | Triggered checkpoint 4996 | -8/Garrison | Triggered checkpoint 5017 | -8/Garrison | Garrison Relay disabled 5072 | -8/Garrison | Discovered new exit (range 15) 5295 | -8/Garrison | Discovered new exit (range 10) 5327 | -8/Garrison | Expanded RIF knowledge: Threat Obfuscation 5377 | -8/Garrison | Entered Recycling 5435 | -8/Recycling | Spotter reported a threat 5477 | -8/Recycling | Spotter reported a threat 5510 | -8/Recycling | Spotter reported a threat 5510 | -8/Recycling | Spotter reported a threat 5525 | -8/Recycling | Spotter reported a threat 5532 | -8/Recycling | Spotter reported a threat 5539 | -8/Recycling | Spotter reported a threat 5578 | -8/Recycling | Spotter reported a threat 5585 | -8/Recycling | Spotter reported a threat 5590 | -8/Recycling | Spotter reported a threat 5593 | -8/Recycling | Spotter reported a threat 5631 | -8/Recycling | Spotter reported a threat 5638 | -8/Recycling | Spotter reported a threat 5655 | -8/Recycling | Spotter reported a threat 5692 | -8/Recycling | Spotter reported a threat 5745 | -8/Recycling | Spotter reported a threat 5750 | -8/Recycling | Spotter reported a threat 5754 | -8/Recycling | Spotter reported a threat 5761 | -8/Recycling | Spotter reported a threat 5763 | -8/Recycling | Spotter reported a threat 5814 | -8/Recycling | Spotter reported a threat 5835 | -8/Recycling | Spotter reported a threat 5835 | -8/Recycling | Spotter reported a threat 5869 | -8/Recycling | Spotter reported a threat 5888 | -8/Recycling | Discovered new exit (range 15) 5918 | -8/Recycling | Entered Factory 5918 | -6/Factory | Evolved 4 slots: Propulsion x1, Utility x3 5920 | -6/Factory | FarCom data flow suspended 6242 | -6/Factory | Build established: Hauler-Tank 6618 | -6/Factory | First assault squad dispatched 6701 | -6/Factory | Garrison activated, responded to threat 6741 | -6/Factory | Destroyed 8 combat bots 6742 | -6/Factory | Self-destructed Last Messages --------------- 06732_ U-05 Engineer lays Concrete. 06734_ U-05 Engineer builds a Wall. 06734_ U-05 Engineer lays Concrete. 06736_ K-01 Serf collects debris. 06736_ U-05 Engineer lays Concrete. 06736_ Hrd. Light Armor Plating destroyed. 06736_ U-05 Engineer lays Concrete. 06737_ G-50 Soldier suffers critical hit. 06737_ Destroyed Carbon-fiber Leg. 06737_ U-05 Engineer lays Concrete. 06739_ K-01 Serf collects debris. 06739_ U-05 Engineer lays Concrete. 06740_ Overheating: System interference. 06740_ Enh. Autogun temporarily disabled. 06740_ Adv. Signal Interpreter temporarily disabled. 06740_ U-05 Engineer lays Concrete. 06740_ K-01 Serf collects debris. 06740_ U-05 Engineer lays Concrete. 06741_ Power failure, Lgt. Ion Engine shutdown. 06741_ U-05 Engineer builds a Wall. Map ----- +----------------------------------------------------+ | ??????????????????????????????????????? ""?????? | | ??????????????????????????????????????? ""?????? | | ??????????????????????????????????????? ? #?? | | ???????????????????????????????????????# """ #?? | | ???????????????????????????????????????# """ #?? | | ???????????????????????????????????????# """ #?? | | ???????????????????????????????????????# """ #?? | | ?????????????????????????????????????### ### | | ?????????????????????????????????????#"" """ #?? | | ?????????????????????????????????????#"" """ #?? | | ?????????????????????????????????????#"Y """ ### | | ?????????????????????????????????????#""% """ # | | ?????????????????????????????????????#"" # | | ?????????????????????????????????????### # | | ???????????????????????????????????????#% + | | ????????????????????##############?????# # | | ????????????????????# ####### # | | ????????????????????# R ### | | ????????????????????# #######+##### #?? | | ????????????????????# #???? ## #?? | | ????????????????????# #??""" """ ##+### | | ????????????????????# ## """ """ # | | ????????????????????# ## """ """ # | | ????????????????????# = ## # | | ????????????????????# =[ #? ! # "" | | ????????????????????# @u ## # | | ????????????????????# = ## # ! | | ????????????????????# %g%|u ################ | | ????????????????????#### * g*######??????????????? | | ??????????????????????# ! #????????????##### | | ??????????????? k=%% #?????????#### | | ??????????? !% ?????? | | ???????????? ?? "" | | ???????????? T =% ? "T | | ????????????? ?? | | ????????????? ? | | ????????????? g u #######??#### | | ??????????????####+#### g ???????????### | | ??????????????????????### k ????????????????? | | ???????????????????????? #??????????????????? | | ???????????????????????? #??????????????????? | | ????????????????????????# #??????????????????? | | ????????????????????????# #??????????????????? | | ????????????????????????? ? ???????????????????? | | ????????????????????????? ?????????????????????? | | ?????????????????????????????????????????????????? | | ?????????????????????????????????????????????????? | | ?????????????????????????????????????????????????? | | ?????????????????????????????????????????????????? | | ?????????????????????????????????????????????????? | +----------------------------------------------------+ Best States ------------- Heat Dissipation 37 Coolant Potential 50 Energy Generation 16 Energy Capacity 290 Matter Stores 300 Matter Capacity 300 Sight Range 16 Robot Scan Range 16 Terrain Scan Density 10 Cloak Strength 5 Armor Coverage 300 Resistance: KI 20 Evasion (%) 40 Recoil Reduction 3 Salvage Targeting 1 Offensive Hacking 10 Item Schematics ----------------- Hcp. Storage Unit | -8/Materials | Scanalyzed Robot Schematics ------------------ None Fabricated ------------ Nothing Alien Tech Used ----------------- None Achievements -------------- None Challenges ------------ None Game ------ Seed PulseHardenedCasing Manual? 0 Play Time 00:49:59 Cumulative 373.8 hours Start 2020.11.05 @ 19:34:18 End 2020.11.05 @ 20:42:39 Sessions 1 Manual Loads 0 Difficulty Rogue Special Mode Halloween2020/ForbiddenLore Game No. 426 Rogue 426 Adventurer 0 Explorer 0 Win Type - Total 32 Types 21/3/7/1/0/0/0/0/0 Lore% 77 Gallery% 87 Achievement% 58 Wizard Run 0 Options --------- ASCII 1 Keyboard 1 Movement Numpad Keybinds 0 Fullscreen 1 Font 18/SmallcapsGlow Map View 76x50 Tactical HUD 1 Map Filters NONE Filters NONE Steam 1 RUN: db82c1d1-4000-491f-8ab6-af494b6fa777